Cogmind - Beta 13 @@@ ROGUE MODE // 2024.08.02 @ 00:28:05 Player: Gofreza Result: Destroyed by G-47 Trooper with Particle Gun Performance ------------- Evolutions (1) 500 Regions Visited (3) 600 Robots Destroyed (15) 75 Value Destroyed (396) 396 Prototype IDs (0) 0 Alien Tech Used (0) 0 Bonus (0) 0 TOTAL SCORE: 1571 Bonus ------- None Cogmind --------- Core Integrity 0/400 Matter 135/300 Energy 495/500 System Corruption 0% Temperature Cool (42) Movement Treading (160) Location -9/Mines Parts ------- > --- POWER (2) -------- (None) > --- PROPULSION (2) --- Light Treads Improved Aluminum Leg > --- UTILITY (3) ------ Large Battery Large Battery > --- WEAPON (2) ------- Medium Laser > --- INVENTORY (5) ---- Heat Sink Small Matter Pod (50) ECM Suite Peak State ------------ > --- POWER ------------ (None) > --- PROPULSION ------- Improved Aluminum Leg Improved Aluminum Leg > --- UTILITY ---------- Large Battery Large Battery > --- WEAPON ----------- Small Laser Mini Grenade Launcher > --- INVENTORY -------- Light Treads Heat Sink Small Matter Pod ECM Suite Medium Laser [Rating: 9] Favorites ----------- Power None Propulsion Aluminum Leg Treads Light Treads Leg Aluminum Leg Utility Large Battery Device ECM Suite Storage Large Battery Weapon Medium Laser Energy Gun Medium Laser Ballistic Gun Light Assault Rifle Launcher Mini Grenade Launcher Build | -11 -10 -9 -9 ------- Run | Yrd Mat Mat Min Slots Evolved 2 | . . 2 . Power 1 | . . 1 . Propulsion . | . . . . Utility 1 | . . 1 . Weapon . | . . . . Parts Attached 21 | 4 8 8 1 Power . | . . . . Engine . | . . . . Core . | . . . . Reactor . | . . . . Propulsion 8 | 2 2 3 1 Treads 1 | . . . 1 Leg 7 | 2 2 3 . Wheel . | . . . . Hover . | . . . . Flight . | . . . . Utility 5 | . 4 1 . Device 1 | . . 1 . Storage 4 | . 4 . . Processor . | . . . . Hackware . | . . . . Protection . | . . . . Artifact . | . . . . Weapon 8 | 2 2 4 . Energy Gun 6 | 2 1 3 . Energy Cannon . | . . . . Ballistic Gun 1 | . 1 . . Ballistic Cannon . | . . . . Launcher 1 | . . 1 . Special Weapon . | . . . . Impact Weapon . | . . . . Slashing Weapon . | . . . . Piercing Weapon . | . . . . Special Melee Weapon . | . . . . Unidentified Prototypes . | . . . . Parts Lost 5 | 1 . 4 . Power . | . . . . Propulsion 1 | . . 1 . Utility 1 | . . 1 . Weapon 3 | 1 . 2 . Highest Loss Streak 3 | 1 . 3 . To Critical Strikes . | . . . . Average Slot Usage (%) 71 | . 79 65 55 Leg 23 | . 28 20 11 Device 1 | . . 2 . Storage 23 | . 24 22 22 Energy Gun 13 | . 17 10 11 Ballistic Gun 8 | . 9 8 . Naked Turns . | . . . . Heaviest Build 12 | 4 12 11 8 Greatest Support 26 | 20 20 26 20 Greatest Overweight (x) . | . . . . Average Overweight (x) . | . . . . Largest Inventory Capacity 5 | 5 5 5 5 Average Capacity 5 | 5 5 5 5 Most Carried 5 | 3 5 5 3 Average Carried 3 | 1 3 4 3 Final Capacity 5 | 5 5 5 5 Final Carried 5 | 1 5 4 3 Class Distribution -------------------- 100% | Mutant Dominant Class ---------------- Mutant | -10/Materials Mutant | -9/Materials Mutant | -9/Mines Resources | -11 -10 -9 -9 ----------- Run | Yrd Mat Mat Min Matter Collected 481 | 240 162 79 . Remotely . | . . . . Salvage Created 356 | 50 . 306 . Parts 16 | . . 16 . Haulers Intercepted 1 | . . 1 . Recyclers Shooed 1 | . . 1 . Parts Field Recycled . | . . . . Retrieved Matter . | . . . . Parts Self-Destructed . | . . . . Prevented . | . . . . Kills | -11 -10 -9 -9 ------- Run | Yrd Mat Mat Min Combat Hostiles Destroyed 9 | 1 . 8 . Guns 6 | . . 6 . AOE 2 | . . 2 . Classes Destroyed 6 | 1 . 5 . Worker 1 | . . 1 . Hauler 1 | . . 1 . Recycler 2 | . . 2 . Watcher 2 | . . 2 . Grunt 6 | 1 . 5 . Sentry 3 | . . 3 . Best Kill Streak 8 | 1 . 8 . Combat Bots Only 3 | 1 . 3 . Max Kills in Single Turn 1 | 1 . 1 . Gunslinging . | . . . . Exploded 1 | . . 1 . Melee . | . . . . Uniques/NPCs Destroyed . | . . . . Combat | -11 -10 -9 -9 -------- Run | Yrd Mat Mat Min Hostile Shots Fired 148 | 20 . 95 33 Missed 45 | 4 . 33 8 Damage Taken 1377 | 180 . 898 299 Core 451 | 45 . 293 113 Absorbed by Shields . | . . . . Core Remaining (%) 82 | 82 82 . . Volleys Fired 54 | 10 . 41 3 Largest 2 | 2 . 2 1 Hottest 90 | 90 . 70 50 Shots Fired 91 | 17 . 71 3 Gun 76 | 17 . 56 3 Cannon . | . . . . Launcher 15 | . . 15 . Special . | . . . . Kinetic 24 | . . 24 . Thermal 45 | 10 . 32 3 Explosive 15 | . . 15 . Electromagnetic 7 | 7 . . . Robot Hit Streak 7 | 6 . 7 2 Robot Miss Streak 3 | 2 . 3 2 Penetration Max . | . . . . Secondary Targets 1 | . . 1 . Max Gunslinging Chain 1 | . . 1 . Shots Hit Robots 61 | 12 . 48 1 Core Hits 33 | 1 . 32 . Critical Kills 1 | . . 1 . Critical Parts Destroyed . | . . . . Critical Strikes 4 | 1 . 3 . Burn 3 | 1 . 2 . Destroy 1 | . . 1 . Melee Attacks . | . . . . Impact . | . . . . Slashing . | . . . . Piercing . | . . . . Sneak Attacks . | . . . . Combat Hostiles . | . . . . Follow-up Attacks . | . . . . Damage Inflicted 1286 | 171 . 1102 13 Guns 564 | 171 . 380 13 Cannons . | . . . . Explosions 710 | . . 710 . Melee . | . . . . Ramming 12 | . . 12 . Kinetic 150 | . . 150 . Thermal 344 | 101 . 230 13 Explosive 710 | . . 710 . Electromagnetic 70 | 70 . . . Impact . | . . . . Slashing . | . . . . Piercing . | . . . . Highest Corruption . | . . . . Average Corruption . | . . . . Corruption Purged . | . . . . Corruption Blocked . | . . . . Overload Shots . | . . . . Overflow Damage 23 | . . 23 . Projectiles . | . . . . Explosions 23 | . . 23 . Melee . | . . . . Knockbacks . | . . . . Impact . | . . . . Kinetic . | . . . . Secondary . | . . . . Self-Inflicted Damage 117 | . . 117 . Shots 7 | . . 7 . Rammed . | . . . . Targets Rammed 2 | . . 2 . Kicked 2 | . . 2 . Crushed . | . . . . Highest Temperature 132 | 132 . 48 27 Average Temperature 29 | 56 . 17 20 Received Heat Transfer 651 | 96 . 366 189 Siege Activations . | . . . . Robots Corrupted . | . . . . Combat Hostiles . | . . . . Parts Fried . | . . . . Impact Corruptions . | . . . . Robots Melted 1 | 1 . . . Combat Hostiles 1 | 1 . . . Parts Melted 2 | 2 . . . Heat Transferred 1222 | 370 . 815 37 Parts Sabotaged . | . . . . Parts Stolen . | . . . . Parts Stripped . | . . . . Power Chain Reactions . | . . . . Alert | -11 -10 -9 -9 ------- Run | Yrd Mat Mat Min Peak Influence 214 | 20 58 214 58 Initial 58 | . 13 . 58 Average 64 | 2 26 116 58 Maximum Alert Level 1 | . . 1 . Low Security (%) 99 | 100 100 97 100 Level 1 . | . . 2 . Level 2 . | . . . . Level 3 . | . . . . Level 4 . | . . . . Level 5 . | . . . . High Security . | . . . . Max Security . | . . . . Squads Dispatched 4 | . 2 2 . Investigation 1 | . 1 . . Extermination . | . . . . Reinforcement 3 | . 1 2 . Assault . | . . . . Garrison . | . . . . Intercept . | . . . . Searches Triggered . | . . . . Construction Impeded . | . . . . Haulers Reinforced . | . . . . Active Scanning Responses . | . . . . Cargo Convoy Interrupts . | . . . . Stealth | -11 -10 -9 -9 --------- Run | Yrd Mat Mat Min Distress Signals . | . . . . Communications Jammed . | . . . . Distress Signals . | . . . . Times Spotted 29 | 1 4 21 3 Peak Tracking Total 5 | 1 2 5 3 Tactical Retreats 3 | . 2 1 . Traps | -11 -10 -9 -9 ------- Run | Yrd Mat Mat Min Traps Triggered . | . . . . Indirectly . | . . . . Trap Hack Attempts . | . . . . Triggered . | . . . . Disarmed . | . . . . Reprogrammed . | . . . . Reused . | . . . . Traps Extracted . | . . . . Installed . | . . . . Triggered . | . . . . Machines | -11 -10 -9 -9 ---------- Run | Yrd Mat Mat Min Machines Disabled 1 | . . 1 . Max in Single Turn 1 | . . 1 . Machines Repaired . | . . . . Machines Dismantled . | . . . . Machines Sabotaged . | . . . . Overloaded Fab Kills . | . . . . Hacking | -11 -10 -9 -9 --------- Run | Yrd Mat Mat Min Machines Accessed . | . . . . Terminals . | . . . . Fabricators . | . . . . Repair Stations . | . . . . Recycling Units . | . . . . Scanalyzers . | . . . . Garrison Access . | . . . . Total Hacks . | . . . . Successful . | . . . . Failed . | . . . . Catastrophic . | . . . . Database Lockouts . | . . . . Manual . | . . . . Terminals . | . . . . Fabricators . | . . . . Repair Stations . | . . . . Recycling Units . | . . . . Scanalyzers . | . . . . Garrison Access . | . . . . Terminal Hacks . | . . . . Fabricator Hacks . | . . . . Repair Station Hacks . | . . . . Recycling Unit Hacks . | . . . . Scanalyzer . | . . . . Garrison Access Hacks . | . . . . Unauthorized Hacks . | . . . . Terminals . | . . . . Fabricators . | . . . . Repair Stations . | . . . . Recycling Units . | . . . . Scanalyzers . | . . . . Garrison Access . | . . . . Data Cores Recovered . | . . . . Used . | . . . . Hacking Detections . | . . . . Full Trace Events . | . . . . Feedback Events . | . . . . Feedback Blocked . | . . . . Robot Schematics Acquired . | . . . . Robots Built . | . . . . Authchips . | . . . . Time . | . . . . Total Robot Build Rating . | . . . . Part Schematics Acquired . | . . . . Parts Built . | . . . . Authchips . | . . . . Time . | . . . . Total Part Build Rating . | . . . . Parts Repaired . | . . . . Time . | . . . . Parts Recycled . | . . . . Recycled Matter . | . . . . Retrieved Matter . | . . . . Retrieved Components . | . . . . Parts Scanalyzed . | . . . . Part Schematics Acquired . | . . . . Parts Damaged . | . . . . Bothacking | -11 -10 -9 -9 ------------ Run | Yrd Mat Mat Min Used RIF Installer . | . . . . Robots Hacked . | . . . . Non-combat . | . . . . Combat . | . . . . Robot Hacks Applied . | . . . . Relay Couplers Released . | . . . . Fabnet Peak Effective % . | . . . . Robots Rewired . | . . . . Allies Hacked . | . . . . Hacks Repelled . | . . . . Allies | -11 -10 -9 -9 -------- Run | Yrd Mat Mat Min Total Allies . | . . . . Largest Group . | . . . . Highest-Rated Group . | . . . . Highest-Rated Ally . | . . . . Total Orders . | . . . . Ally Attacks . | . . . . Total Damage . | . . . . Kills . | . . . . Allies Corrupted . | . . . . Allies Melted . | . . . . Intel | -11 -10 -9 -9 ------- Run | Yrd Mat Mat Min Robot Analysis Total . | . . . . Derelict Logs Recovered . | . . . . Drone Launches . | . . . . Drone Recoveries . | . . . . Exploration | -11 -10 -9 -9 ------------- Run | Yrd Mat Mat Min Turns Passed 1117 | 125 450 478 64 Spaces Moved 771 | 92 355 288 36 Core 29 | 29 . . . Treads 36 | . . . 36 Legs 706 | 63 355 288 . Wheels . | . . . . Hover . | . . . . Flight . | . . . . Fastest Speed 50 | 50 120 120 160 Average Speed 119 | 97 120 120 160 Slowest Speed 160 | 120 120 120 160 Overloaded Moves . | . . . . Propulsion Burnouts . | . . . . Robots Hopped . | . . . . Cave-ins Triggered . | . . . . Exploration Rate (%) 19 | 7 41 21 9 Regions Visited 3 Branch Regions 1 Pre-discovered Areas 1 | . . . 1 Known Exits Taken . | . . . . Unknown Exits Taken 3 | 1 1 1 . Scrap Searched . | . . . . Spaces Dug . | . . . . Terrain Destroyed 67 | . . 67 . Melee . | . . . . Projectile . | . . . . AOE 67 | . . 67 . Terrain Rammed . | . . . . Walls Destroyed . | . . . . Machines Disabled . | . . . . Actions | -11 -10 -9 -9 --------- Run | Yrd Mat Mat Min Total 884 | 110 381 353 40 Wait 4 | . . 4 . Move 768 | 91 354 287 36 Hop . | . . . . Pick Up 24 | 5 13 6 . Fast Attach . | . . . . Attach 14 | 4 7 2 1 Detach . | . . . . Swap 7 | . 1 6 . Drop 11 | . 6 5 . Fire 54 | 10 . 41 3 Melee . | . . . . Ram . | . . . . Kick 2 | . . 2 . Crush . | . . . . Escape Stasis . | . . . . Rewire . | . . . . Trap . | . . . . Miscellaneous . | . . . . Route ------- -11/Scrapyard -10/Materials -9/Materials -9/Mines History --------- Turn | Location | Event 2 | -11/Scrapyard | Met Revision 17 63 | -11/Scrapyard | Discovered new exit (range 8) 126 | -11/Scrapyard | Entered Materials 315 | -10/Materials | Build established: Mutant 352 | -10/Materials | Discovered new exit (range 3) 576 | -10/Materials | Entered another Materials area 576 | -9/Materials | Evolved 2 slots: Power x1, Utility x1 955 | -9/Materials | Discovered new exit (range 8) 1005 | -9/Materials | Core integrity fell below 50% 1038 | -9/Materials | Lost 3 parts (1n2w) 1054 | -9/Materials | Entered Mines 1059 | -9/Mines | Core integrity fell below 20% 1101 | -9/Mines | Learned location of Storage (-7) 1118 | -9/Mines | Destroyed by G-47 Trooper with Particle Gun Last Messages --------------- The unstable cave ceiling collapses. K-01 Serf collects debris. The unstable cave ceiling collapses. K-01 Serf collects debris. The unstable cave ceiling collapses. K-01 Serf collects debris. LOCATION=UNKNOWN GOAL=ESCAPE A derelict emerges from the shadows: "Are any of them following you? I'm here trying to lose some heat after our second raid on Storage failed. Whatever you do stay away from that place, they've tightened security following our previous successful raids." World map updated: -7/Storage. GV-OMY(g): "We scattered so the Unaware couldn't effectively use their advantage in numbers, and I suggest you do the same." GV-OMY(g) slips back into the shadows. Critical hit (Burn: +37). Map ----- +----------------------------------------------------+ | ??????????????????????????????????? | | ??????????????????????????????????? | | ??????????????????????????????????? | | ??????????????????????????????????? | | ??????????????????????????????????? | | ??????????????????????????????????? | | ??????????????????????????????????? | | ??????????????????????????????????? | | ??????????????????????????????????? | | ??????????????????????????????????? | | ??????????????????????????????????? | | ??????????????????????????????????? | | ??????????????????????????????????? | | ??????????????????????????????????? | | ??????????????????????????????????? | | ??????????????????????????????????? | | ??????????????????????????????????? | | ??????????????????????????????????? | | ??????????????????????????????????? | | ??????????????????????????????????? | | ??????????????????????????????????? | | ??????????????????????????????????? | | ???????????######?????????????????? | | ????????#### ##????####????????? | | ???????## g #### ##???????? | | ???????# @ g t [ #???????? | | ???????# g ! ! #???????? | | ???????## ##### ### !!##???????? | | ????????####???# #???? ###????????? | | ???????????????# #????????????????? | | ???????????????# #????????????????? | | ???????????????# #????????????????? | | ???????????????# #????????????????? | | ???????????????# #????????????????? | | ???????????????# #????????????????? | | ???????????????# #????????????????? | | ?????????####### #????????????????? | | ?????????# #????????????????? | | ?????????# #######????????????????? | | ?????????# #??????????????????????? | | ?????##### #??????????????????????? | | ?????# #??????????????????????? | | ?????# ## ##??????????????????????? | | ?????#??# #???????????????????????? | | ????## ## ###?????????????????????? | | ????# #?????????????????????? | | ????# #?????????????????????? | | ????# #?????????????????????? | | ????# #?????????????????????? | | ????# #?????????????????????? | +----------------------------------------------------+ Best States ------------- Heat Dissipation 28 Energy Generation 5 Energy Capacity 500 Matter Stores 362 Matter Capacity 700 Sight Range 16 Terrain Scan Density 10 Evasion (%) 55 Recoil Reduction 1 Item Schematics ----------------- None Robot Schematics ------------------ None Fabricated ------------ Nothing Alien Tech Used ----------------- None Achievements -------------- Loot Pinata Challenges ------------ None Game ------ Seed WeightConcussiveStorm Manual? 0 Play Time 00:12:05 Cumulative 0.6 hours Start 2024.08.02 @ 00:16:27 End 2024.08.02 @ 00:28:05 Sessions 1 Manual Loads 0 Difficulty Rogue Special Mode None Game No. 2 Rogue 2 Adventurer 0 Explorer 0 Win Type - Total 0 Types 0/0/0/0/0/0/0/0/0 Lore% 0 Gallery% 3 Achievement% 2 Wizard Run 0 Options --------- Layout 1 ASCII 1 Keyboard 0 Movement Arrows Keybinds 0 Fullscreen 1 Font 24/Smallcaps Map View 50x35 Zoom Use 0% Tactical HUD 0 Map Filters NONE Filters NONE Steam 0 RUN: df08cc7d-8fc9-440f-a79d-63595216919c